bitfinex-derivatives/quotes_ETHF0:USTF0_20241104
["timestamp","ask_amount","ask_price","bid_price","bid_amount"]
[1730761086302,0.8951,2414.1,2413.8,5.000886]
[1730761086493,0.41451,2414.0,2413.9,0.56694782]
[1730761087093,0.41453,2413.9,2413.8,4.43393818]
[1730761087296,0.41453,2413.9,2413.8,3.24393818]
[1730761087796,4.55693,2413.9,2413.8,3.24393818]
[1730761088602,4.1424,2413.9,2413.7,1.19]
[1730761088903,3.6722,2414.0,2413.6,3.24393818]
[1730761089103,0.41457,2413.7,2413.6,1.19]
[1730761089306,0.41457,2413.7,2413.6,1.75541636]
[1730761090800,0.41459,2413.6,2413.4,3.62241]
[1730761091007,0.41459,2413.6,2413.5,0.57121347]
[1730761093302,41.83636,2413.9,2413.4,4.3978]
[1730761093502,0.4146,2413.5,2413.4,4.3978]
[1730761093703,0.4146,2413.5,2413.4,4.96906962]
[1730761094304,0.4146,2413.5,2413.4,9.11225165]
[1730761094507,0.41458,2413.6,2413.5,0.4146]
[1730761094701,0.41458,2413.6,2413.5,4.22964404]
[1730761094901,0.41457,2413.7,2413.6,0.41458]
[1730761095102,0.41457,2413.7,2413.5,3.65852818]
[1730761095306,0.41457,2413.7,2413.6,4.1432]
[1730761095506,3.2078,2414.0,2413.5,3.65852818]
[1730761095801,0.41458,2413.6,2413.5,3.65852818]
[1730761096406,0.41458,2413.6,2413.4,4.3978]
[1730761096407,0.4146,2413.6,2413.4,4.3978]
[1730761096610,3.2078,2414.0,2413.4,4.81241]
[1730761096611,0.4146,2413.5,2413.4,4.81241]
[1730761096809,0.4146,2413.6,2413.5,0.4146]
[1730761097109,0.4146,2413.6,2413.4,4.8124]
[1730761097613,0.4146,2413.5,2413.4,4.3978]
[1730761098222,4.69641,2414.0,2413.4,4.3978]
[1730761098223,4.69641,2414.0,2413.4,4.9690755]
[1730761098514,0.41459,2413.6,2413.5,0.41459]
[1730761098709,0.41459,2413.6,2413.4,1.6046]
[1730761099009,0.41459,2413.6,2413.4,1.19]
[1730761099203,0.41459,2413.6,2413.4,1.60461]
[1730761099406,0.4146,2413.5,2413.4,1.60461]
[1730761100007,0.41459,2413.6,2413.5,0.4146]
[1730761100327,3.2078,2413.7,2413.4,1.19]
[1730761100612,0.4146,2413.5,2413.4,1.60461]
[1730761102216,0.4146,2413.5,2413.4,1.60462]
[1730761102611,0.41462,2413.4,2413.3,4.14963818]
[1730761102815,0.41462,2413.4,2413.3,5.75426818]
[1730761103713,0.41462,2413.4,2413.3,4.14963818]
[1730761103915,0.41462,2413.4,2413.3,5.75426818]
[1730761105918,0.41462,2413.4,2413.3,5.33963818]
[1730761106215,0.41462,2413.4,2413.3,5.75426818]
[1730761106812,0.41462,2413.4,2413.3,0.4407]
[1730761107619,0.41462,2413.4,2413.3,0.85533]
[1730761107814,0.41462,2413.4,2413.3,0.4407]
[1730761108217,0.41462,2413.4,2413.3,0.85533]
[1730761108608,0.41462,2413.4,2413.3,0.25533]
[1730761110620,3.2078,2413.5,2413.2,1.6475]
[1730761110823,1.48861,2414.0,2413.2,4.8553]
[1730761110824,3.2078,2413.8,2413.2,4.8553]
[1730761111221,0.4146,2413.5,2413.4,0.41461]
[1730761112417,0.4146,2413.5,2413.4,0.41462]
[1730761112627,0.41462,2413.4,2413.3,0.84813]
[1730761113619,0.41462,2413.4,2413.3,0.84812]
[1730761114029,0.41462,2413.4,2413.3,2.03412]
[1730761114722,0.41462,2413.4,2413.3,1.6195]
[1730761115224,0.41462,2413.4,2413.3,2.03413]
[1730761116224,0.41462,2413.4,2413.3,1.6195]
[1730761116419,0.41462,2413.4,2413.3,2.03413]
[1730761117317,0.41462,2413.4,2413.3,1.6195]
[1730761117519,0.41462,2413.4,2413.3,2.03413]
[1730761117727,0.41462,2413.4,2413.3,1.6195]
[1730761118416,0.41462,2413.4,2413.3,2.03413]
[1730761119022,0.41462,2413.4,2413.3,1.6195]
[1730761119420,0.41462,2413.4,2413.3,2.6058528]
[1730761120320,0.41462,2413.4,2413.3,2.1912228]
[1730761120517,0.41462,2413.4,2413.3,2.6058528]
[1730761120918,0.41462,2413.4,2413.3,1.0052228]
[1730761121819,0.41462,2413.4,2413.3,0.5717228]
[1730761122732,0.41465,2413.2,2413.1,3.52551788]
[1730761122922,0.41465,2413.2,2413.1,4.1033349]
[1730761123227,0.41465,2413.2,2413.1,3.68864593]
[1730761123434,0.41465,2413.2,2413.1,0.57778805]
[1730761123622,5.42925,2413.2,2413.1,0.57778805]
[1730761123822,5.0146,2413.2,2413.0,3.2078]
[1730761124129,0.41467,2413.1,2413.0,3.2078]
[1730761124429,41.21467,2413.1,2413.0,3.7858053]
[1730761124725,44.944,2413.1,2412.7,3.11375788]
[1730761125030,0.41471,2412.9,2412.8,0.57457789]
[1730761125523,4.55951,2412.9,2412.8,0.57457789]
[1730761125826,0.41479,2412.4,2412.3,0.097]
[1730761126027,3.2078,2412.6,2412.3,0.57506546]
[1730761126227,0.41481,2412.4,2412.1,5.11588788]
[1730761126427,0.41481,2412.4,2412.2,0.9896026]
[1730761126633,0.41481,2412.4,2412.1,4.70105788]
[1730761126928,0.41481,2412.4,2412.1,5.11588788]
[1730761127125,0.41481,2412.3,2412.2,0.57478227]
[1730761127526,0.41481,2412.3,2412.2,0.57472988]
[1730761128918,0.41481,2412.3,2412.1,3.2078]
[1730761128919,0.41482,2412.2,2412.1,3.2078]
[1730761129122,1.29482,2412.2,2412.1,3.7825308]
[1730761129329,1.29482,2412.2,2412.1,3.2078]
[1730761129726,0.88,2412.2,2412.0,0.4345]
[1730761129928,0.41486,2412.0,2411.8,0.84369]
[1730761130232,0.41485,2412.1,2411.8,2.02969]
[1730761130532,1.3334,2412.2,2411.9,0.57454942]
[1730761130728,1.3334,2412.2,2411.8,2.02969]
[1730761130931,0.41485,2412.1,2411.9,0.5743142]
[1730761131126,0.41486,2412.0,2411.8,2.02969]
[1730761131431,0.41486,2412.0,2411.8,1.186]
[1730761131729,1.3334,2412.2,2411.7,7.70774827]
[1730761131931,0.41489,2411.9,2411.8,0.57411075]
[1730761132337,0.41489,2411.8,2411.7,3.6749]
[1730761132522,0.41489,2411.8,2411.7,4.2488242]
[1730761133330,0.41489,2411.8,2411.7,3.6749]
[1730761134824,0.41489,2411.8,2411.7,0.4671]
[1730761135033,0.41489,2411.8,2411.6,1.186]
[1730761135034,3.2078,2412.0,2411.6,1.186]
[1730761135231,0.41493,2411.6,2411.5,0.4519]
[1730761135434,0.41492,2411.7,2411.5,0.86684]
[1730761135625,0.41493,2411.6,2411.5,0.4519]
[1730761136234,0.4527,2411.8,2411.4,3.2078]
[1730761136433,0.8816,2411.7,2411.2,1.284]
[1730761136641,0.41495,2411.5,2411.4,0.4567]
[1730761136830,3.62274,2411.6,2411.4,0.4567]
[1730761137031,0.8816,2411.7,2411.4,0.87165]
[1730761137235,3.62273,2411.6,2411.4,0.87165]
[1730761137431,0.8816,2411.7,2411.5,0.41494]
[1730761137432,1.29652,2411.7,2411.5,0.41494]
[1730761137633,0.83822,2411.7,2411.5,0.41494]
[1730761137835,3.6661,2411.9,2411.4,0.4567]
[1730761138138,3.2078,2411.9,2411.4,0.9091]
[1730761138437,3.2078,2411.9,2411.8,0.41489]
[1730761138636,3.2078,2411.9,2411.4,0.9091]
[1730761138937,3.2078,2411.9,2411.7,0.4149]
[1730761139234,3.62268,2411.9,2411.7,0.4149]
[1730761139430,3.2078,2411.9,2411.8,0.4453]
[1730761139935,3.62268,2411.9,2411.8,0.4453]
[1730761140137,7.3542,2411.9,2411.3,0.097]
[1730761140434,0.41496,2411.4,2411.3,0.4453]
[1730761140827,0.41498,2411.3,2411.2,3.2078]
[1730761142236,4.56218,2411.3,2411.2,3.2078]
[1730761142432,5.03018,2411.3,2411.2,3.2078]
[1730761142737,5.03018,2411.3,2410.8,1.004]
[1730761142738,0.41505,2410.9,2410.8,0.5433]
[1730761142933,0.41506,2410.8,2410.7,4.3898]
[1730761143443,0.41506,2410.8,2410.5,4.23025168]
[1730761143444,4.148,2410.8,2410.5,4.23025168]
[1730761143641,3.2078,2410.9,2410.5,4.23025168]
[1730761143642,0.4151,2410.6,2410.5,4.23025168]
[1730761143942,0.41513,2410.5,2410.3,4.06924]
[1730761144136,0.41513,2410.4,2410.3,0.4463]
[1730761144638,0.41513,2410.4,2410.0,0.097]
[1730761144639,0.41519,2410.1,2410.0,0.097]
[1730761144847,3.2078,2410.3,2409.9,3.6644]
[1730761145045,0.4152,2410.0,2409.9,3.6644]
[1730761145233,0.4152,2410.0,2409.9,3.2078]
[1730761145438,0.41525,2409.8,2409.6,0.4566]
[1730761145839,3.2078,2410.0,2409.6,0.4566]
[1730761145840,0.41525,2409.7,2409.6,0.4566]
[1730761146035,0.41525,2409.7,2409.5,3.2078]
[1730761146338,0.41525,2409.7,2409.4,0.4153]
[1730761146645,0.41525,2409.7,2409.3,1.6232]
[1730761146646,0.4153,2409.5,2409.3,0.4402]
[1730761147345,0.41531,2409.4,2409.1,3.62315]
[1730761147544,3.2078,2409.4,2409.2,0.41534]
[1730761147844,6.44468078,2409.7,2409.0,4.70263994]
[1730761148042,3.62302,2410.0,2409.6,0.41526]
[1730761148245,3.62302,2410.0,2409.4,3.2078]
[1730761148246,3.62302,2410.0,2409.7,0.41525]
[1730761148440,3.2078,2410.0,2409.7,0.41525]
[1730761148640,3.2078,2410.0,2409.5,0.9059]
[1730761148945,0.4476,2410.4,2409.9,0.41522]
[1730761148946,0.41516,2410.3,2409.9,0.41522]
[1730761149548,0.41517,2410.2,2409.9,0.41522]
[1730761149747,3.23688078,2410.4,2409.8,3.2078]
[1730761149947,3.23688078,2410.4,2410.0,0.4152]
[1730761149948,0.41515,2410.3,2410.0,0.4152]
[1730761150245,0.41515,2410.3,2409.8,3.2078]
[1730761150246,0.41518,2410.2,2409.9,0.41521]
[1730761150651,44.03688078,2410.4,2409.8,3.2078]
[1730761150848,3.2078,2410.1,2409.6,0.097]
[1730761151051,0.41524,2409.8,2409.5,4.52898]
[1730761151345,0.41526,2409.7,2409.5,3.663]
[1730761151551,3.2078,2409.8,2409.3,1.183]
[1730761151748,0.41531,2409.4,2409.3,1.183]
[1730761151945,3.2078,2409.5,2409.0,0.85216]
[1730761152149,0.41534,2409.2,2409.0,0.85216]
[1730761152843,3.2078,2409.5,2409.0,0.4368]
[1730761153045,0.41536,2409.1,2409.0,0.4368]
[1730761153350,0.41535,2409.2,2409.0,0.4368]
[1730761153546,0.41536,2409.1,2408.9,3.2078]
[1730761153751,0.41537,2409.0,2408.9,3.2078]
[1730761154146,0.8805,2409.4,2408.6,1.7292]
[1730761154147,0.4154,2408.9,2408.6,1.7292]
[1730761154454,3.2078,2409.1,2408.5,3.2078]
[1730761154652,0.41543,2408.7,2408.5,3.2078]
[1730761154852,3.23688078,2408.9,2408.5,3.2078]
[1730761154853,0.41544,2408.6,2408.5,3.2078]
[1730761155150,0.41544,2408.6,2408.3,0.41549]
[1730761155151,0.41548,2408.4,2408.2,3.657]
[1730761155354,3.23688078,2408.6,2408.2,3.657]
[1730761155355,6.44468078,2408.6,2408.2,3.657]
[1730761155656,0.41546,2408.5,2408.2,4.0725]
[1730761156049,40.8,2408.4,2408.2,4.0725]
[1730761156557,3.62325,2408.6,2408.3,0.41549]
[1730761156853,3.2078,2408.6,2408.2,3.2078]
[1730761157054,0.41542,2408.8,2408.5,0.41545]
[1730761157256,0.41543,2408.8,2408.5,0.41545]
[1730761157554,6.44468078,2408.9,2408.2,3.3048]
[1730761157555,40.8,2408.7,2408.2,3.3048]
[1730761157859,0.41546,2408.5,2408.2,3.62331]
[1730761158449,40.8,2408.7,2408.2,3.62331]
[1730761158450,0.41548,2408.4,2408.2,3.2078]
[1730761159551,0.4155,2408.3,2408.2,3.2078]
[1730761159862,0.41549,2408.4,2408.2,3.2078]
[1730761160360,0.4155,2408.3,2408.2,3.2078]
[1730761161956,4.1055,2408.6,2408.2,3.62331]
[1730761162154,4.1055,2408.6,2408.2,3.2078]
[1730761162345,0.41547,2408.5,2408.2,3.62331]
[1730761163862,0.41547,2408.5,2408.2,3.2078]
[1730761164058,0.41547,2408.5,2408.2,3.6233]
[1730761164658,0.41547,2408.5,2408.2,3.2078]
[1730761164861,0.41547,2408.5,2408.2,3.6233]
[1730761165655,3.23688078,2408.7,2408.2,3.2078]
[1730761165848,3.65231078,2408.7,2408.5,0.41545]
[1730761166052,6.87218078,2408.9,2408.2,3.6539]
[1730761166355,3.23688078,2408.9,2408.7,0.41542]
[1730761166560,3.65228078,2408.9,2408.6,0.41543]
[1730761167056,3.23688078,2408.9,2408.2,3.6539]
[1730761167261,3.23688078,2408.9,2408.8,0.41541]
[1730761167762,3.65228078,2408.9,2408.6,0.41544]
[1730761167960,3.23688078,2408.9,2408.3,5.61251318]
[1730761168162,0.41543,2408.7,2408.4,0.41548]
[1730761168352,0.41543,2408.7,2408.4,0.41547]
[1730761168559,0.41544,2408.6,2408.3,4.84400318]
[1730761168753,3.2078,2408.8,2408.2,3.6539]
[1730761169058,3.23688078,2408.7,2408.2,3.6539]
[1730761169360,0.41549,2408.4,2408.2,3.2078]
[1730761169958,0.41549,2408.4,2408.2,3.62331]
[1730761170458,0.4155,2408.4,2408.2,3.2078]
[1730761170761,0.41549,2408.4,2408.2,3.2078]
[1730761170957,0.4155,2408.3,2408.2,3.2078]
[1730761171367,0.41549,2408.4,2408.2,3.2078]
[1730761171758,3.67718078,2408.7,2408.2,3.2078]
[1730761171956,0.4155,2408.3,2408.2,3.2078]
[1730761174859,0.4155,2408.3,2408.1,0.4509]
[1730761174860,0.41551,2408.2,2408.1,0.4509]
[1730761175967,3.2078,2408.3,2408.1,0.4509]
[1730761176157,3.62331,2408.3,2408.1,0.86642]
[1730761176360,3.23688078,2408.4,2408.3,0.4155]
[1730761176564,3.2078,2408.5,2408.2,4.152]
[1730761176870,3.62325,2408.6,2408.4,0.41548]
[1730761177262,4.09261078,2408.7,2408.5,0.41546]
[1730761177469,4.09261078,2408.7,2408.4,0.41547]
[1730761177663,4.09261078,2408.7,2408.5,0.41545]
[1730761178364,0.41544,2408.6,2408.4,0.41546]
[1730761178570,0.41544,2408.6,2408.1,0.4509]
[1730761178766,0.41544,2408.6,2408.4,0.41547]
[1730761179069,3.2078,2408.6,2408.4,0.41546]
[1730761179265,3.62324,2408.6,2408.4,0.41546]
[1730761179563,3.2078,2408.6,2408.1,0.4509]
[1730761179764,3.2078,2408.6,2408.5,0.41546]
[1730761179966,3.2078,2408.6,2408.1,0.4509]
[1730761180362,3.2078,2408.6,2408.4,0.41547]
[1730761180363,3.62325,2408.6,2408.4,0.41547]
[1730761181264,3.2078,2408.6,2408.5,0.41545]
[1730761181469,3.2078,2408.6,2408.1,0.4509]
[1730761181669,3.2078,2408.6,2407.8,0.5339]
[1730761181670,0.41556,2408.0,2407.8,0.5339]
[1730761181871,6.44468078,2408.3,2407.7,3.2078]
[1730761182071,0.9,2408.2,2407.7,3.62339]
[1730761182263,1.03898,2407.8,2407.4,0.097]
[1730761182468,1.03898,2407.8,2407.1,0.097]
[1730761182469,0.41569,2407.2,2407.1,0.097]
[1730761182777,0.41569,2407.2,2406.6,0.5652]
[1730761182778,44.0078,2407.2,2406.6,0.5652]
[1730761182963,0.41572,2407.0,2406.7,0.97721889]
[1730761183164,3.2078,2406.9,2406.7,0.41576]
[1730761183359,3.2078,2406.9,2406.8,0.56186388]
[1730761184467,3.2078,2406.9,2406.8,0.5624466]
[1730761184867,3.62354,2406.9,2406.8,0.5624466]
[1730761185166,3.2078,2406.9,2406.8,0.5624466]
[1730761186175,3.2078,2406.9,2406.7,0.41576]
[1730761186477,3.2078,2406.9,2406.8,0.55856765]
[1730761186669,3.62354,2406.9,2406.6,0.88398]
[1730761186863,3.62354,2406.9,2406.7,0.55858958]
[1730761187068,3.23688078,2406.8,2406.6,0.88398]
[1730761187470,3.65264078,2406.8,2406.6,0.4682]
[1730761187769,0.41578,2406.7,2406.4,3.62362]
[1730761188072,0.41578,2406.7,2406.5,0.55842534]
[1730761188267,0.41578,2406.7,2406.6,0.55842534]
[1730761188571,3.23688078,2406.8,2406.6,0.55873925]
[1730761188778,3.65264078,2406.8,2406.5,0.4158]
[1730761189082,3.65264078,2406.8,2406.6,0.55872793]
[1730761189269,3.23688078,2406.8,2406.4,3.2078]
[1730761189569,3.65264078,2406.8,2406.5,0.55855644]
[1730761189776,3.23688078,2406.8,2406.7,0.41577]
[1730761190075,3.23688078,2407.0,2406.9,0.41574]
[1730761190473,6.44468078,2407.3,2406.9,4.1544]
[1730761190667,6.44468078,2407.3,2407.0,0.56374617]
[1730761190968,6.44468078,2407.3,2407.1,0.56370663]
[1730761191165,6.86035078,2407.3,2407.0,0.41571]
[1730761191370,6.86035078,2407.3,2407.1,0.5638493]
[1730761191567,6.86035078,2407.3,2407.1,0.4157]
[1730761191967,6.44468078,2407.3,2406.8,2.0615]
[1730761192169,6.44468078,2407.3,2407.1,0.41569]
[1730761192368,6.44468078,2407.3,2406.9,0.56383771]
[1730761192369,0.41569,2407.2,2406.9,0.41574]
[1730761193175,3.62349,2407.2,2406.8,2.0615]
[1730761193478,3.2078,2407.2,2407.0,0.41571]
[1730761194172,3.62349,2407.2,2407.0,0.41571]
[1730761195579,3.62349,2407.2,2406.9,0.41572]
[1730761196172,0.41571,2407.1,2406.9,0.41572]
[1730761196781,3.2078,2407.2,2406.8,2.0615]
[1730761196977,0.41572,2407.0,2406.8,2.47724]
[1730761197485,0.41574,2406.9,2406.8,2.0615]
[1730761197983,0.41574,2406.9,2406.8,0.8815]
[1730761198377,0.41574,2406.9,2406.8,0.4439]
[1730761198978,3.23688078,2407.0,2406.6,3.62357]
[1730761199288,0.41577,2406.7,2406.6,3.2078]
[1730761199582,0.41577,2406.8,2406.6,3.62359]
[1730761199772,0.41577,2406.7,2406.6,3.2078]
[1730761199970,0.41577,2406.7,2406.5,0.4353]
[1730761199971,0.41579,2406.6,2406.5,0.4353]
[1730761200299,0.41586,2406.3,2406.1,1.05715544]
[1730761200487,3.23688078,2406.5,2406.0,1.28786177]
[1730761200781,3.2078,2406.3,2406.2,0.41585]
[1730761201378,0.4625,2406.6,2406.5,0.41581]
[1730761201579,6.86046078,2406.7,2406.5,0.41581]
[1730761201786,6.44468078,2406.7,2406.6,0.41579]
[1730761201983,3.2078,2406.7,2406.6,0.41579]
[1730761202981,0.4625,2407.1,2406.4,1.03957]
[1730761203179,4.10077078,2407.2,2406.5,1.4244604]
[1730761203379,3.23688078,2407.4,2406.6,1.4516504]
[1730761203579,3.23688078,2407.4,2406.8,1.03939]
[1730761203776,3.23688078,2407.4,2407.3,0.41567]
[1730761203982,40.8,2407.5,2407.4,0.41565]
[1730761204183,40.8,2407.5,2407.0,3.2078]
[1730761204184,3.2078,2407.6,2407.5,0.41563]
[1730761204780,40.8,2407.8,2407.2,0.99233718]
[1730761204985,40.8,2407.8,2407.3,3.2078]
[1730761205172,40.8,2407.8,2407.6,0.4156]
[1730761205376,40.8,2407.8,2407.7,0.4156]
[1730761205582,40.8,2407.8,2407.6,0.41561]
[1730761206783,40.8,2407.8,2407.3,3.2078]
[1730761207082,40.8,2407.8,2407.6,0.41561]
[1730761207286,40.8,2407.8,2407.5,0.41562]
[1730761207287,41.21559,2407.8,2407.5,0.41562]
[1730761207480,40.8,2407.8,2407.6,0.41561]
[1730761207684,40.8,2407.8,2407.3,3.2078]
[1730761207685,41.21559,2407.8,2407.3,3.2078]
[1730761207890,41.21559,2407.8,2407.6,0.41562]
[1730761208084,41.21559,2407.8,2407.5,0.41562]
[1730761208287,40.8,2407.8,2407.6,0.41562]
[1730761208484,40.8,2407.8,2407.3,3.2078]
[1730761208686,40.8,2407.8,2407.7,0.4156]
[1730761209187,40.8,2407.8,2407.3,3.2078]
[1730761209485,40.8,2407.8,2407.6,0.41561]
[1730761209787,40.8,2407.8,2407.5,0.41563]
[1730761209989,41.21559,2407.8,2407.5,0.41562]
[1730761210176,40.8,2407.8,2407.4,1.176]
[1730761210485,0.4392,2408.2,2407.6,7.63287865]
[1730761210690,0.4392,2408.2,2408.0,0.41554]
[1730761210891,41.2392,2408.2,2408.0,0.41554]
[1730761211286,40.8,2408.2,2408.1,0.41553]
[1730761211592,0.4641,2408.3,2408.1,0.41553]
[1730761211892,3.62329,2408.4,2408.1,0.41552]
[1730761212093,40.8,2408.3,2407.8,0.4689]
[1730761212294,40.8,2408.3,2408.1,0.41552]
[1730761212593,40.8,2408.3,2408.2,0.41551]
[1730761212993,40.8,2408.3,2408.2,4.56751]
[1730761214192,0.4392,2408.6,2408.2,4.152]
[1730761214387,3.99090259,2409.1,2408.3,4.152]
[1730761214388,0.4154,2408.9,2408.3,4.152]
[1730761214587,3.2078,2408.8,2408.7,0.41541]
[1730761214790,44.0078,2408.8,2408.7,0.41541]
[1730761215294,44.0078,2408.8,2408.4,4.8802002]
[1730761215491,44.0078,2408.8,2408.7,0.41543]
[1730761215693,40.8,2408.8,2408.7,0.41543]
[1730761216292,3.2078,2408.9,2408.7,0.41543]
[1730761216501,0.84664,2409.3,2408.8,0.41541]
[1730761216797,44.0078,2409.2,2408.6,1.176]
[1730761216996,44.0078,2409.2,2409.0,0.41537]
[1730761217586,0.41543,2408.7,2408.6,0.097]
[1730761217797,1.03844,2409.0,2408.1,4.28717553]
[1730761217798,0.41549,2408.4,2408.1,4.28717553]
[1730761217993,0.41549,2408.4,2408.1,3.62332]
[1730761218190,40.8,2408.3,2408.2,0.41551]
[1730761218895,40.8,2408.3,2408.1,3.2078]
[1730761219291,7.3606,2408.2,2407.8,0.097]
[1730761219488,0.41556,2408.0,2407.7,0.41559]
[1730761219693,0.41557,2407.9,2407.7,0.41559]
[1730761219996,0.41557,2407.9,2407.6,3.62341]
[1730761220394,0.41557,2407.9,2407.7,0.41559]
[1730761220597,0.41558,2407.8,2407.6,3.2078]
[1730761220899,0.41559,2407.8,2407.6,3.62341]
[1730761221300,0.4586,2408.1,2407.6,3.2078]
[1730761221301,0.4156,2407.7,2407.6,3.2078]
[1730761221594,0.4586,2408.1,2407.6,3.62341]
[1730761221595,0.41559,2407.8,2407.6,3.62341]
[1730761222092,0.41558,2407.9,2407.6,3.62341]
[1730761222286,0.41559,2407.8,2407.6,3.62341]
[1730761222492,3.62339,2407.8,2407.6,0.41561]
[1730761222991,3.2078,2407.8,2407.5,1.176]
[1730761223196,0.41562,2407.6,2407.4,0.4306]
[1730761223393,0.41562,2407.6,2407.4,2.02225]
[1730761223585,3.2078,2407.8,2407.4,1.6066]
[1730761223792,3.2078,2407.8,2407.4,0.4306]
[1730761224097,0.41561,2407.7,2407.4,0.84624]
[1730761224293,3.2078,2407.8,2407.4,0.4306]
[1730761224491,4.44950259,2408.1,2407.1,0.9772]
[1730761224492,0.41569,2407.2,2407.1,0.097]
[1730761224692,0.4157,2407.1,2407.0,0.57129504]
[1730761224897,3.2078,2407.2,2406.8,0.85985]
[1730761225095,0.41572,2407.0,2406.8,0.85985]
[1730761225297,0.41572,2407.0,2406.9,1.176]
[1730761225499,3.2078,2407.2,2406.5,4.40690259]
[1730761225500,0.41577,2406.7,2406.5,0.4158]
[1730761225807,0.41577,2406.7,2406.3,0.41583]
[1730761225808,40.8,2406.7,2406.3,0.41583]
[1730761225992,0.4158,2406.6,2406.3,0.41583]
[1730761226197,40.8,2406.7,2406.2,1.6306]
[1730761226198,3.2078,2406.5,2406.2,1.6306]
[1730761226386,3.2078,2406.5,2406.2,2.04645]
[1730761226590,3.2078,2406.5,2406.3,0.41583]
[1730761227395,3.2078,2406.5,2406.2,1.6306]
[1730761227998,3.2078,2406.5,2406.3,0.41584]
[1730761228697,3.2078,2406.5,2406.2,1.6306]
[1730761229200,3.2078,2406.5,2406.3,0.41583]
[1730761229697,3.2078,2406.5,2406.4,0.41582]
[1730761229996,3.62356,2406.8,2406.5,0.4158]
[1730761230699,0.41569,2407.2,2406.9,0.41572]
[1730761230896,3.62347,2407.3,2407.0,0.41572]
[1730761231097,3.2078,2407.3,2406.7,0.4432]
[1730761231291,3.2078,2407.3,2407.1,0.4157]
[1730761231489,3.2078,2407.3,2406.8,0.4527]
[1730761231490,3.2078,2407.3,2407.0,0.41571]
[1730761231695,3.62347,2407.3,2407.0,0.41571]
[1730761231895,3.2078,2407.3,2407.0,0.41571]
[1730761232503,3.2078,2407.3,2406.8,1.6747]
[1730761232504,3.2078,2407.3,2407.1,0.4157]
[1730761233196,3.62347,2407.3,2407.0,0.41571]
[1730761233796,3.2078,2407.3,2407.0,0.41571]
[1730761234006,3.62347,2407.3,2407.0,0.41571]
[1730761234300,0.41569,2407.2,2407.0,0.41571]
[1730761234496,3.2078,2407.3,2406.8,1.6747]
[1730761234893,0.4629,2407.4,2406.8,1.6747]
[1730761235097,3.2078,2407.3,2407.1,0.4157]
[1730761235805,3.2078,2407.3,2406.8,1.6747]
[1730761236105,0.41569,2407.2,2406.9,0.41573]
[1730761236900,0.41569,2407.2,2406.8,1.6747]
[1730761237107,0.41569,2407.2,2407.0,0.41572]
[1730761238002,3.2078,2407.3,2406.8,1.6747]
[1730761238198,0.41569,2407.2,2406.9,0.41573]
[1730761238400,0.41569,2407.2,2407.0,0.41571]
[1730761238594,0.41569,2407.2,2406.9,0.41573]
[1730761239203,0.41569,2407.2,2406.9,0.41574]
[1730761239396,0.41571,2407.1,2406.9,0.41574]
[1730761239902,0.41573,2407.0,2406.8,0.41575]
[1730761240300,3.2078,2407.3,2406.7,4.4298]
[1730761240502,0.41574,2406.9,2406.7,4.84557]
[1730761240800,0.41574,2406.9,2406.7,4.4298]
[1730761241309,3.62354,2406.9,2406.7,1.222]
[1730761241705,0.41575,2406.8,2406.7,1.222]
[1730761242500,0.41581,2406.5,2406.4,0.38953929]
[1730761242707,3.62361,2406.5,2406.3,0.41584]
[1730761242900,0.41583,2406.4,2406.2,0.41585]
[1730761244301,0.41582,2406.4,2406.1,1.222]
[1730761244505,0.41582,2406.4,2406.1,1.63786]
[1730761245010,3.2078,2406.5,2406.1,1.63786]
[1730761245214,0.41585,2406.3,2406.1,1.63786]
[1730761246214,0.41584,2406.3,2406.1,1.63787]
[1730761246415,0.41584,2406.3,2406.1,1.222]
[1730761246610,0.41584,2406.3,2406.1,1.63787]
[1730761247514,3.62364,2406.3,2406.1,1.63787]
[1730761247715,0.41586,2406.2,2406.1,1.222]
[1730761247922,3.2078,2406.3,2406.1,1.222]
[1730761248220,3.62365,2406.3,2406.1,1.63788]
[1730761248411,3.2078,2406.3,2406.1,1.222]
[1730761248613,3.2078,2406.3,2406.2,0.41586]
[1730761249005,0.41581,2406.5,2406.3,0.41584]
[1730761249006,3.2078,2406.4,2406.3,0.41584]
[1730761250511,3.2078,2406.4,2406.2,0.41584]
[1730761251122,3.2078,2406.4,2406.3,0.41584]
[1730761251319,3.2078,2406.4,2406.0,1.671]
[1730761251718,3.2078,2406.4,2406.3,0.41584]
[1730761252522,3.2078,2406.7,2406.6,0.41579]
[1730761252715,0.41574,2406.9,2406.3,12.59886313]
[1730761252716,0.41574,2406.9,2406.7,0.41576]
[1730761252916,3.2078,2406.8,2406.7,0.41576]
[1730761253611,0.41573,2407.0,2406.7,0.41577]
[1730761253925,0.41572,2407.0,2406.8,0.41574]
[1730761254214,0.41574,2406.9,2406.7,0.41576]
[1730761254416,3.2078,2407.1,2406.4,0.4583]
[1730761254619,0.41574,2406.9,2406.7,0.41577]
[1730761255414,3.2078,2407.1,2406.4,0.4583]
[1730761255617,0.41573,2407.0,2406.4,0.4583]
[1730761255823,0.41573,2407.0,2406.8,0.41575]
[1730761256013,3.2078,2407.1,2406.4,0.4583]
[1730761256216,0.41573,2407.0,2406.8,0.41575]
[1730761257114,0.41574,2406.9,2406.7,0.41576]
[1730761257715,3.2078,2407.1,2406.5,3.2078]
[1730761258017,3.2078,2406.8,2406.4,0.4658]
[1730761258220,42.1551,2407.3,2406.2,0.097]
[1730761258221,0.41584,2406.3,2406.2,0.097]